Cogmind - Beta 15 @@@ ROGUE MODE // 2025.07.21 @ 01:02:33 Player: P9H Result: Destroyed by L5-5WF(j) with Overtuned Pulse Rifle Performance ------------- Evolutions (0) 0 Regions Visited (3) 600 Robots Destroyed (13) 65 Value Destroyed (552) 552 Prototype IDs (10) 200 Alien Tech Used (0) 0 Bonus (732) 732 TOTAL SCORE: 2149 Bonus ------- Registered with UFD 300 Met Optimus in HQ 500 Friendly Fire -68 Cogmind --------- Core Integrity 0/250 Matter 157/300 Energy 100/100 System Corruption 0% Temperature Danger (418) Movement Core (350) Ox6 Location -8/Scraptown Parts ------- > --- POWER (1) -------- (None) > --- PROPULSION (2) --- (None) > --- UTILITY (2) ------ Medium Storage Unit A0-MCA's Component Scanner > --- WEAPON (2) ------- Gauss Rifle Helical Railgun > --- INVENTORY (10) --- Scrap Suit Improved Cryofiber Web Improved Heat Sink Makeshift Microdissipator Network Makeshift Light Armor Plating Makeshift Light Armor Plating Makeshift Light Armor Plating Peak State ------------ > --- POWER ------------ Light Deuterium Engine > --- PROPULSION ------- Wheel Subdweller Monowheel > --- UTILITY ---------- Medium Storage Unit A0-MCA's Component Scanner > --- WEAPON ----------- Helical Railgun Helical Railgun > --- INVENTORY -------- Ion Engine Scrap Suit Improved Cryofiber Web Improved Heat Sink Makeshift Microdissipator Network Makeshift Light Armor Plating Light Assault Rifle Gauss Rifle [Rating: 37] Favorites ----------- Power Ion Engine Engine Ion Engine Propulsion Wheel Wheel Wheel Utility Light Humpback Device Subdweller Optics Storage Light Humpback Processor A0-MCA's Component Scanner Weapon Light Assault Rifle Ballistic Gun Light Assault Rifle Build | -11 -10 -10 -8 ------- Run | Yrd Mat Sub Scr Slots Evolved . | . . . . Power . | . . . . Propulsion . | . . . . Utility . | . . . . Weapon . | . . . . Parts Attached 18 | 6 . 1 11 Power 4 | 1 . . 3 Engine 4 | 1 . . 3 Core . | . . . . Reactor . | . . . . Propulsion 4 | 2 . . 2 Treads . | . . . . Leg . | . . . . Wheel 4 | 2 . . 2 Hover . | . . . . Flight . | . . . . Utility 5 | 1 . 1 3 Device 1 | . . 1 . Storage 3 | 1 . . 2 Processor 1 | . . . 1 Hackware . | . . . . Protection . | . . . . Artifact . | . . . . Weapon 5 | 2 . . 3 Energy Gun . | . . . . Energy Cannon . | . . . . Ballistic Gun 5 | 2 . . 3 Ballistic Cannon . | . . . . Launcher . | . . . . Special Weapon . | . . . . Impact Weapon . | . . . . Slashing Weapon . | . . . . Piercing Weapon . | . . . . Special Melee Weapon . | . . . . Unidentified Prototypes . | . . . . Parts Lost 9 | . . . 9 Power 3 | . . . 3 Propulsion 4 | . . . 4 Utility 1 | . . . 1 Weapon 1 | . . . 1 Highest Loss Streak 5 | . . . 5 To Critical Strikes . | . . . . Average Backups 12 | 1 2 3 14 Power 2 | . 1 1 2 Propulsion 1 | . . . 1 Utility 4 | . . . 5 Weapon 4 | . 1 2 4 Tool/Special . | . . . . Unused Backups 33 | . . 2 31 Power 5 | . . . 5 Propulsion 2 | . . . 2 Utility 15 | . . . 15 Weapon 10 | . . 2 8 Tool/Special 1 | . . . 1 Average Slot Usage (%) 85 | . 85 85 85 Engine 13 | . 14 14 13 Wheel 27 | . 28 28 27 Storage 13 | . 14 14 13 Ballistic Gun 28 | . 28 28 28 Peak Build Rating 37 | 6 6 9 37 Average Rating 11 | 3 6 6 13 On Entrance 5 | . 6 6 9 Naked Turns . | . . . . Heaviest Build 50 | 12 12 14 50 Greatest Support 30 | 20 20 20 30 Greatest Overweight (x) 2 | . . . 2 Average Overweight (x) 1 | . . . 1 Largest Inventory Capacity 25 | 8 8 8 25 Average Capacity 20 | 6 8 8 23 Most Carried 25 | 5 3 8 25 Average Carried 14 | 2 2 4 16 Final Capacity 10 | 8 8 8 10 Final Carried 8 | 2 3 8 8 Class Distribution -------------------- 94% | Mutant 5% | Scavenger-Mutant Dominant Class ---------------- Mutant | -10/Materials Mutant | -10/Subcaves Mutant | -8/Scraptown Resources | -11 -10 -10 -8 ----------- Run | Yrd Mat Sub Scr Matter Collected 502 | 231 29 10 232 Remotely . | . . . . Salvage Created 701 | . . . 701 Parts 42 | . . . 42 Haulers Intercepted . | . . . . Recyclers Shooed . | . . . . Parts Field Recycled . | . . . . Retrieved Matter . | . . . . Parts Self-Destructed 3 | . . 3 . Prevented . | . . . . Kills | -11 -10 -10 -8 ------- Run | Yrd Mat Sub Scr Combat Hostiles Destroyed 13 | . . . 13 Guns 13 | . . . 13 Classes Destroyed 5 | . . . 5 Federalist 4 | . . . 4 Explorer 1 | . . . 1 Guru 1 | . . . 1 Scrapper 6 | . . . 6 Mutant 1 | . . . 1 Best Kill Streak 11 | . . . 11 Combat Bots Only 11 | . . . 11 Max Kills in Single Turn 1 | . . . 1 Gunslinging . | . . . . Exploded . | . . . . Melee . | . . . . Uniques/NPCs Destroyed . | . . . . Combat | -11 -10 -10 -8 -------- Run | Yrd Mat Sub Scr Hostile Shots Fired 70 | . . 1 69 Missed 12 | . . . 12 Hits 58 | . . 1 57 Projectile 58 | . . 1 57 Critical Strikes 3 | . . . 3 Damage Taken 1104 | . . 23 1081 Core 272 | . . . 272 Absorbed by Shields . | . . . . Core Remaining (%) 100 | 100 . . . Volleys Fired 35 | . . . 35 Largest 2 | . . . 2 Hottest 76 | . . . 76 Shots Fired 66 | . . . 66 Gun 66 | . . . 66 Cannon . | . . . . Launcher . | . . . . Special . | . . . . Kinetic 66 | . . . 66 Thermal . | . . . . Explosive . | . . . . Electromagnetic . | . . . . Robot Hit Streak 6 | . . . 6 Robot Miss Streak 7 | . . . 7 Penetration Max 2 | . . . 2 Secondary Targets . | . . . . Shots Hit Robots 37 | . . . 37 Core Hits 19 | . . . 19 Critical Kills 2 | . . . 2 Critical Parts Destroyed . | . . . . Critical Strikes 2 | . . . 2 Destroy 2 | . . . 2 Melee Attacks . | . . . . Impact . | . . . . Slashing . | . . . . Piercing . | . . . . Sneak Attacks . | . . . . Combat Hostiles . | . . . . Follow-up Attacks . | . . . . Damage Inflicted 1029 | . . . 1029 Guns 1029 | . . . 1029 Cannons . | . . . . Explosions . | . . . . Melee . | . . . . Ramming . | . . . . Kinetic 1029 | . . . 1029 Thermal . | . . . . Explosive . | . . . . Electromagnetic . | . . . . Impact . | . . . . Slashing . | . . . . Piercing . | . . . . Highest Corruption . | . . . . Average Corruption . | . . . . Corruption Purged . | . . . . Corruption Blocked . | . . . . Overload Shots . | . . . . Overflow Damage . | . . . . Projectiles . | . . . . Explosions . | . . . . Melee . | . . . . Knockbacks . | . . . . Impact . | . . . . Kinetic . | . . . . Secondary . | . . . . Self-Inflicted Damage . | . . . . Shots . | . . . . Rammed . | . . . . Targets Rammed . | . . . . Kicked . | . . . . Crushed . | . . . . Highest Temperature 384 | . . . 384 Average Temperature 131 | . . . 131 Received Heat Transfer 696 | . . . 696 Effects 2 | . . . 2 Interference 1 | . . . 1 Damage (minor) 1 | . . . 1 Siege Activations . | . . . . Martial Activations . | . . . . Shielding Activations . | . . . . Robots Disrupted . | . . . . Combat Hostiles . | . . . . Robots Corrupted . | . . . . Combat Hostiles . | . . . . Parts Fried . | . . . . Impact Corruptions . | . . . . Robots Melted . | . . . . Combat Hostiles . | . . . . Parts Melted 1 | . . . 1 Heat Transferred . | . . . . Parts Sabotaged . | . . . . Parts Stolen . | . . . . Parts Stripped . | . . . . Power Chain Reactions . | . . . . Alert | -11 -10 -10 -8 ------- Run | Yrd Mat Sub Scr Maximum Alert Level . | . . . . Low Security (%) 100 | 100 100 . . Level 1 . | . . . . Level 2 . | . . . . Level 3 . | . . . . Level 4 . | . . . . Level 5 . | . . . . High Security . | . . . . Max Security . | . . . . Peak Influence . | . . . . Initial . | . . . . Average . | . . . . Influence Increases . | . . . . Influence Decreases . | . . . . Squads Dispatched 1 | . 1 . . Investigation . | . . . . Extermination . | . . . . Reinforcement 1 | . 1 . . Assault . | . . . . Garrison . | . . . . Intercept . | . . . . Searches Triggered . | . . . . Construction Impeded . | . . . . Haulers Reinforced . | . . . . Active Scanning Responses . | . . . . Cargo Convoy Interrupts . | . . . . Stealth | -11 -10 -10 -8 --------- Run | Yrd Mat Sub Scr Distress Signals . | . . . . Communications Jammed . | . . . . Distress Signals . | . . . . Times Spotted 26 | . 1 3 22 Peak Tracking Total 4 | . 1 2 4 Tactical Retreats 1 | . . . 1 Traps | -11 -10 -10 -8 ------- Run | Yrd Mat Sub Scr Traps Triggered . | . . . . Indirectly . | . . . . Trap Hack Attempts . | . . . . Triggered . | . . . . Disarmed . | . . . . Reprogrammed . | . . . . Reused . | . . . . Traps Extracted . | . . . . Installed . | . . . . Triggered . | . . . . Machines | -11 -10 -10 -8 ---------- Run | Yrd Mat Sub Scr Machines Disabled . | . . . . Max in Single Turn . | . . . . Machines Repaired . | . . . . Machines Dismantled . | . . . . Machines Sabotaged . | . . . . Overloaded Fab Kills . | . . . . Hacking | -11 -10 -10 -8 --------- Run | Yrd Mat Sub Scr Machines Accessed 3 | . . . 3 Terminals . | . . . . Fabricators . | . . . . Repair Stations . | . . . . Recycling Units . | . . . . Scanalyzers . | . . . . Garrison Access . | . . . . Total Hacks 4 | . . . 4 Successful 4 | . . . 4 Failed . | . . . . Catastrophic . | . . . . Database Lockouts . | . . . . Manual . | . . . . Terminals . | . . . . Fabricators . | . . . . Repair Stations . | . . . . Recycling Units . | . . . . Scanalyzers . | . . . . Garrison Access . | . . . . Terminal Hacks 4 | . . . 4 Record 4 | . . . 4 Fabricator Hacks . | . . . . Repair Station Hacks . | . . . . Recycling Unit Hacks . | . . . . Scanalyzer . | . . . . Garrison Access Hacks . | . . . . Unauthorized Hacks . | . . . . Terminals . | . . . . Fabricators . | . . . . Repair Stations . | . . . . Recycling Units . | . . . . Scanalyzers . | . . . . Garrison Access . | . . . . Data Cores Recovered . | . . . . Used . | . . . . Hacking Detections . | . . . . Full Trace Events . | . . . . Feedback Events . | . . . . Feedback Blocked . | . . . . Robot Schematics Acquired . | . . . . Robots Built . | . . . . Authchips . | . . . . Time . | . . . . Total Robot Build Rating . | . . . . Part Schematics Acquired . | . . . . Parts Built . | . . . . Authchips . | . . . . Time . | . . . . Total Part Build Rating . | . . . . Parts Repaired . | . . . . Time . | . . . . Parts Recycled . | . . . . Recycled Matter . | . . . . Retrieved Matter . | . . . . Retrieved Components . | . . . . Parts Scanalyzed . | . . . . Part Schematics Acquired . | . . . . Parts Damaged . | . . . . Bothacking | -11 -10 -10 -8 ------------ Run | Yrd Mat Sub Scr Used RIF Installer . | . . . . Robots Hacked . | . . . . Non-combat . | . . . . Combat . | . . . . Robot Hacks Applied . | . . . . Relay Couplers Released . | . . . . Fabnet Peak Effective % . | . . . . Robots Rewired . | . . . . Allies Hacked . | . . . . Hacks Repelled . | . . . . Allies | -11 -10 -10 -8 -------- Run | Yrd Mat Sub Scr Total Allies . | . . . . Largest Group . | . . . . Highest-Rated Group . | . . . . Highest-Rated Ally . | . . . . Total Orders . | . . . . Ally Attacks . | . . . . Total Damage . | . . . . Kills . | . . . . Allies Corrupted . | . . . . Allies Melted 7 | . . . 7 Intel | -11 -10 -10 -8 ------- Run | Yrd Mat Sub Scr Active Infowar (turns) 18 | . . 16 2 Optics 18 | . . 16 2 Robot Analysis Total . | . . . . Derelict Logs Recovered 4 | . . 1 3 Drone Launches . | . . . . Drone Recoveries . | . . . . Exploration | -11 -10 -10 -8 ------------- Run | Yrd Mat Sub Scr Turns Passed 2578 | 44 130 283 2121 Spaces Moved 2139 | 43 97 220 1779 Core 14 | 14 . . . Treads . | . . . . Legs . | . . . . Wheels 2125 | 29 97 220 1779 Hover . | . . . . Flight . | . . . . Fastest Speed 50 | 50 80 80 80 Average Speed 104 | 70 80 80 109 Slowest Speed 130 | 80 80 80 130 Overloaded Moves . | . . . . Propulsion Burnouts . | . . . . Robots Hopped . | . . . . Potential Cave-ins . | . . . . Cave-ins Triggered . | . . . . Exploration Rate (%) 31 | 4 14 21 88 Regions Visited 3 Branch Regions 2 Pre-discovered Areas 4 | . . 2 2 Known Exits Taken . | . . . . Unknown Exits Taken 3 | 1 1 1 . Scrap Searched 5 | . . 2 3 Spaces Dug . | . . . . Terrain Destroyed 18 | . . . 18 Melee . | . . . . Projectile 18 | . . . 18 AOE . | . . . . Terrain Rammed . | . . . . Walls Destroyed . | . . . . Machines Disabled . | . . . . Actions | -11 -10 -10 -8 --------- Run | Yrd Mat Sub Scr Total 2422 | 56 149 327 1890 Wait 157 | . 52 99 6 Move 2136 | 42 96 219 1779 Hop . | . . . . Pick Up 57 | 8 1 6 42 Fast Attach 2 | . . 1 1 Attach 13 | 6 . . 7 Detach . | . . . . Swap 5 | . . . 5 Drop 17 | . . 2 15 Fire 35 | . . . 35 Melee . | . . . . Ram . | . . . . Kick . | . . . . Crush . | . . . . Escape Stasis . | . . . . Rewire . | . . . . Trap . | . . . . Miscellaneous . | . . . . Route ------- -11/Scrapyard -10/Materials -10/Subcaves -8/Scraptown (discovered 1 exit: [*Fac]) History --------- Turn | Location | Event 30 | -11/Scrapyard | Discovered new exit (range 15) 45 | -11/Scrapyard | Entered Materials 46 | -10/Materials | Met a group of wandering Federalists 174 | -10/Materials | Discovered new exit (range 3) 175 | -10/Materials | Entered Subcaves 176 | -10/Subcaves | Continued accompanying wandering Federalists (5) 247 | -10/Subcaves | Learned location of Zion (-6) 247 | -10/Subcaves | Met a Zionite searching for "candidates" 312 | -10/Subcaves | Build established: Mutant 380 | -10/Subcaves | Shifting Twisted Machinery released Lgt. Humpback 433 | -10/Subcaves | Wandering Federalist uncovered a shortcut to Scraptown 458 | -10/Subcaves | Entered Scraptown 900 | -8/Scraptown | Scanned Subdweller tech in exchange for log data 902 | -8/Scraptown | Learned Research non-interactive machine intel 903 | -8/Scraptown | Learned location of Quarantine (-3) 904 | -8/Scraptown | Learned location of Armory (-3) 920 | -8/Scraptown | Discovered new exit (range 11) 1038 | -8/Scraptown | Visited Awakened 1082 | -8/Scraptown | Visited Cave Peace 1137 | -8/Scraptown | Heard Great Nut preacher, LISTEN AND RECITE! 1139 | -8/Scraptown | Visited CPS Storage 1581 | -8/Scraptown | Visited Symbiants 1621 | -8/Scraptown | Visited UFD Registry 1624 | -8/Scraptown | Registered with UFD as "Bioripper" 1679 | -8/Scraptown | Visited SPCMW 1751 | -8/Scraptown | Visited Assassins FH 1782 | -8/Scraptown | Visited Comm Corps 2013 | -8/Scraptown | Visited A0-MCA Data Center 2019 | -8/Scraptown | Given a B+ rating by A0-MCA 2022 | -8/Scraptown | Found A0-MCA's Component Scanner 2067 | -8/Scraptown | Visited Chapter 10 2098 | -8/Scraptown | Visited Infowarlord's Domain 2153 | -8/Scraptown | Met Optimus 2153 | -8/Scraptown | Accepted into 0bPrime 2223 | -8/Scraptown | Civil war broke out across Scraptown 2260 | -8/Scraptown | Visited Scrap Suit Storage 2266 | -8/Scraptown | Found Scrap Suit 2286 | -8/Scraptown | Visited Research Penetration Think Tank 2336 | -8/Scraptown | Optimus destroyed in the chaos of civil war 2354 | -8/Scraptown | Lost 3 allies 2406 | -8/Scraptown | Lost 4 parts (1p2n1u) 2518 | -8/Scraptown | Lost 6 allies 2564 | -8/Scraptown | Core integrity fell below 50% 2570 | -8/Scraptown | Core integrity fell below 20% 2576 | -8/Scraptown | Lost 3 allies 2579 | -8/Scraptown | Destroyed 11 combat bots 2579 | -8/Scraptown | Destroyed by L5-5WF(j) with Overtuned Pulse Rifle Last Messages --------------- 02564_ Slug penetrates R9-MPE(j). 02566_ Lgt. Deuterium Engine destroyed. 02570_ Sub. Monowheel destroyed. 02572_ Helical Railgun destroyed. 02573_ Wheel destroyed. 02574_ R9-MPE(j) heat short circuits Mak. Microdissipator Network. 02575_ Overheating: Med. Storage Unit damaged (-66). 02575_ Slug penetrates L5-5WF(j). 02576_ Slug penetrates QL-R80(j). 02576_ QL-R80(j) destroyed. 02576_ TN-TY1(E) suffers critical hit (Impale). 02577_ R9-MPE(j) heat damages Ovr. Pulse Rifle. 02577_ Lgt. Deuterium Engine destroyed. 02578_ R9-MPE(j) cannibalizes Salvaging Laser to repair Ovr. Pulse Rifle. 02578_ R9-MPE(j) overheating. 02579_ R9-MPE(j) heat damages Ovr. Titanium Leg. 02579_ Critical hit (Burn: +50). Map ----- +----------------------------------------------------+ | #?#" """ "#?# " " #??????# ????#" | | #?#" """ "#?# " " #??????? ##???#" | | #?#" "#?# "" "" #????????? #???#" | | #?#" "#?# """""" #???????????""""#???#" | | #?#" "#??# ##????????????# #????## | | ########## ########### ####???????##### ####### | | #???????#"""" """"""" | | #???????#" | | #???????#" | | #???????#" | | #???????#" | | ################# #???#####" != | | #???????????????# #???#"""" !=%"""""" | | #???????????????; #???#"""" =!"""""" | | #??????????????## x #???#"" !""#### | | #??????????????#; E%* #???#"" =%= = ""# | | #??????????????#; [ #???#"""%/ %% ""# | | #?##########????# %###?#""""*% [ ""# | | #?# #???## !%[!""#"#""" !=% ""# " | | ### ##??#; =!===""""#"""" ! ""# " | | ##" "#??## !%[%!""####### "" | | ##""""""""""##?#; =!==!###?????#" "" | | #" "#?## *=%=#########" ""# " | | #" "#?#; !!=!!%%*[!%! "# " | | #" "#??# = *=[!!=[====! %!= [ "# | | # #?## *%=*@ !%*!%!!* !%!*!%=%""# | | # #=!= !! %%!=%=!!=!!! *%![ "# | | #### ##########%*! [[TT%![![= * %=![=**""#### | | =%!j!!%[*!!%TT%[![=!* *!!!%!%!==[""" | | !![%=%!%!= !%=%%==*! =%%%* [=%==!*="%" | | ! j[[[*!* =[!![[%!% !![% !%/!/%%%%=! | | *=%=%!!%!! [=!![= = [ % !*=!= %= | | %!%*=/%!= = E ![[*!=!* | | *[=[[=%=[!!! #""""# !*=[!%[[! | | %== !!!%!%!![ #????# [=%!==!!! | | %!%=[!%=%/!= #????#" "" "! = | | # ############# ;#;####=##%= ####????####### ##### | | #?# === #*! #???????????? ??? | | "#?#" %!*"# #??????????" "?? | | "###### "#?#"" [!""# #?????????# " &"? | | # """#" "#?#"" ""# #?????????#?" ""? | | "# #" "#?#"" ""# #???????????" """" | | "#"" # "#?#"" ""# #???????????##"####?? | | "###+## "#?#"" " " ""# #???????????????????? | | "#?#""""""X"""""# #???????????????????? | | """"""""""#?#""""""""""""# #???????????????????? | | ###########?############## #???????????????????? | | ?????????????????????????# #???????????????????? | | ??????????????############ #???????????????????? | | ??????????????#""""""""""" #???????????????????? | +----------------------------------------------------+ Best States ------------- Heat Dissipation 25 Energy Generation 14 Energy Capacity 250 Matter Stores 300 Matter Capacity 300 Sight Range 21 Terrain Scan Density 10 Evasion (%) 44 Item Schematics ----------------- None Robot Schematics ------------------ None Fabricated ------------ Nothing Repaired ---------- Nothing Alien Tech Used ----------------- None Achievements -------------- None Challenges ------------ None Game ------ Seed FireArcMount Manual? 0 Play Time 00:43:19 Cumulative 40.0 hours Start 2025.07.19 @ 14:56:04 End 2025.07.21 @ 01:02:33 Sessions 3 Manual Loads 0 Difficulty Rogue Special Mode None Game No. 81 Rogue 81 Adventurer 0 Explorer 0 Win Type - Total 0 Types 0/0/0/0/0/0/0/0/0/0 Lore% 8 Gallery% 28 Achievement% 24 Wizard Run 0 Options --------- Layout 1 ASCII 0 Keyboard 0 Movement Numpad Keybinds 0 Fullscreen 2 Font 32/SmallcapsGlow Map View 50x35 Zoom Use 0% Tactical HUD 1 Map Filters NONE Filters NONE Steam 1 RUN: fa17eac5-adb8-466a-a07a-0c88b51d87ac